{"text_format":"1","workbook":"xlsx","n_sheets":3,"sheets":["Data","Filter","Param"],"not_rendered":{"charts":0,"images":0,"macros":1,"external_links":0,"defined_names":4,"comments":0,"pivot_tables":0},"unopened":[],"bounds":{"document_bytes":16777216,"sheet_cells":100000,"rows_first":2000,"rows_last":500,"rows_between":2000,"halvings":0,"cell_chars":16384,"cell_head_chars":4096},"cells_cut":0,"cells_raw":0,"read":"whole","date_system":"1900"}

{"sheet":"Data","index":0,"n_rows":9,"n_cols":10,"rows_kept":9,"cut":false,"hidden":false,"merged":[]}
["stlp 1","stlp 2","stlp 3","stlp 4","stlp 5","stlp 6","stlp 7","stlp 8","stlp 9","stlp 10"]
["a",null,"bav",null,null,null,"t","yrt","iuy","df"]
["t",null,"din","wer",null,null,"u","aq","df"]
["e","i",null,null,"sa",null,null,"w","uytry"]
["y",null,null,null,"hr","u","uy","rtrty","reert"]
["h","gaf",null,"fa",null,"k",null,"uiu","twe"]
["ht","er",null,null,"ui","iuy","ng","ti","ytry"]
["e","er","u","uyi","yui","bg",null,null,"uytru","h"]
["d","uyu",null,"ui",null,null,"werw",null,"ytyr"]

{"sheet":"Filter","index":1,"n_rows":6,"n_cols":10,"rows_kept":6,"cut":false,"hidden":false,"merged":[]}
["Filter","a"]
["stlp 1","stlp 2","stlp 3","stlp 4","stlp 5","stlp 6","stlp 7","stlp 8","stlp 9","stlp 10"]
["a",null,"bav",null,null,null,"t","yrt","iuy","df"]
["t",null,"din","wer",null,null,"u","aq","df"]
["e","i",null,null,"sa",null,null,"w","uytry"]
["h","gaf",null,"fa",null,"k",null,"uiu","twe"]

{"sheet":"Param","index":2,"n_rows":21,"n_cols":20,"rows_kept":21,"cut":false,"hidden":true,"merged":[]}
[{"$f":"INDEX(tblData[#Headers],COLUMN(A1))","v":"stlp 1"},{"$f":"INDEX(tblData[#Headers],COLUMN(B1))","v":"stlp 2"},{"$f":"INDEX(tblData[#Headers],COLUMN(C1))","v":"stlp 3"},{"$f":"INDEX(tblData[#Headers],COLUMN(D1))","v":"stlp 4"},{"$f":"INDEX(tblData[#Headers],COLUMN(E1))","v":"stlp 5"},{"$f":"INDEX(tblData[#Headers],COLUMN(F1))","v":"stlp 6"},{"$f":"INDEX(tblData[#Headers],COLUMN(G1))","v":"stlp 7"},{"$f":"INDEX(tblData[#Headers],COLUMN(H1))","v":"stlp 8"},{"$f":"INDEX(tblData[#Headers],COLUMN(I1))","v":"stlp 9"},{"$f":"INDEX(tblData[#Headers],COLUMN(J1))","v":"stlp 10"},{"$f":"INDEX(tblData[#Headers],COLUMN(K1))","v":{"$error":"#REF!"}},{"$f":"INDEX(tblData[#Headers],COLUMN(L1))","v":{"$error":"#REF!"}},{"$f":"INDEX(tblData[#Headers],COLUMN(M1))","v":{"$error":"#REF!"}},{"$f":"INDEX(tblData[#Headers],COLUMN(N1))","v":{"$error":"#REF!"}},{"$f":"INDEX(tblData[#Headers],COLUMN(O1))","v":{"$error":"#REF!"}},{"$f":"INDEX(tblData[#Headers],COLUMN(P1))","v":{"$error":"#REF!"}},{"$f":"INDEX(tblData[#Headers],COLUMN(Q1))","v":{"$error":"#REF!"}},{"$f":"INDEX(tblData[#Headers],COLUMN(R1))","v":{"$error":"#REF!"}},{"$f":"INDEX(tblData[#Headers],COLUMN(S1))","v":{"$error":"#REF!"}},{"$f":"INDEX(tblData[#Headers],COLUMN(T1))","v":{"$error":"#REF!"}}]
[{"$f":"\"*\"&Filter!$B$1&\"*\"","v":"*a*"}]
[null,{"$f":"\"*\"&Filter!$B$1&\"*\"","v":"*a*"}]
[null,null,{"$f":"\"*\"&Filter!$B$1&\"*\"","v":"*a*"}]
[null,null,null,{"$f":"\"*\"&Filter!$B$1&\"*\"","v":"*a*"}]
[null,null,null,null,{"$f":"\"*\"&Filter!$B$1&\"*\"","v":"*a*"}]
[null,null,null,null,null,{"$f":"\"*\"&Filter!$B$1&\"*\"","v":"*a*"}]
[null,null,null,null,null,null,{"$f":"\"*\"&Filter!$B$1&\"*\"","v":"*a*"}]
[null,null,null,null,null,null,null,{"$f":"\"*\"&Filter!$B$1&\"*\"","v":"*a*"}]
[null,null,null,null,null,null,null,null,{"$f":"\"*\"&Filter!$B$1&\"*\"","v":"*a*"}]
[null,null,null,null,null,null,null,null,null,{"$f":"\"*\"&Filter!$B$1&\"*\"","v":"*a*"}]
[null,null,null,null,null,null,null,null,null,null,{"$f":"\"*\"&Filter!$B$1&\"*\"","v":"*a*"}]
[null,null,null,null,null,null,null,null,null,null,null,{"$f":"\"*\"&Filter!$B$1&\"*\"","v":"*a*"}]
[null,null,null,null,null,null,null,null,null,null,null,null,{"$f":"\"*\"&Filter!$B$1&\"*\"","v":"*a*"}]
[null,null,null,null,null,null,null,null,null,null,null,null,null,{"$f":"\"*\"&Filter!$B$1&\"*\"","v":"*a*"}]
[null,null,null,null,null,null,null,null,null,null,null,null,null,null,{"$f":"\"*\"&Filter!$B$1&\"*\"","v":"*a*"}]
[null,null,null,null,null,null,null,null,null,null,null,null,null,null,null,{"$f":"\"*\"&Filter!$B$1&\"*\"","v":"*a*"}]
[null,null,null,null,null,null,null,null,null,null,null,null,null,null,null,null,{"$f":"\"*\"&Filter!$B$1&\"*\"","v":"*a*"}]
[null,null,null,null,null,null,null,null,null,null,null,null,null,null,null,null,null,{"$f":"\"*\"&Filter!$B$1&\"*\"","v":"*a*"}]
[null,null,null,null,null,null,null,null,null,null,null,null,null,null,null,null,null,null,{"$f":"\"*\"&Filter!$B$1&\"*\"","v":"*a*"}]
[null,null,null,null,null,null,null,null,null,null,null,null,null,null,null,null,null,null,null,{"$f":"\"*\"&Filter!$B$1&\"*\"","v":"*a*"}]